Cogmind - Beta 13 @@@ ROGUE MODE // 2024.04.11 @ 22:25:47 Player: Rend Result: Destroyed by as-33297 with Assembled Blade Performance ------------- Evolutions (0) 0 Regions Visited (2) 400 Robots Destroyed (20) 100 Value Destroyed (411) 411 Prototype IDs (0) 0 Alien Tech Used (0) 0 Bonus (0) 0 TOTAL SCORE: 911 Bonus ------- None Cogmind --------- Core Integrity 0/250 Matter 300/300 Energy 125/125 System Corruption 0% Temperature Cool (0) Movement Rolling (115) Ox1 Location -10/Mines Parts ------- > --- POWER (1) -------- Light Ion Engine > --- PROPULSION (2) --- Compact Wheel > --- UTILITY (2) ------ Small Storage Unit Signal Interpreter > --- WEAPON (2) ------- Slug Cannon Katana > --- INVENTORY (8) ---- Ion Engine Aluminum Leg Aluminum Leg Structural Scanner Beam Cannon Light Assault Rifle High-powered Shotgun Grenade Launcher Peak State ------------ > --- POWER ------------ Light Ion Engine > --- PROPULSION ------- Wheel Compact Wheel > --- UTILITY ---------- Small Storage Unit Signal Interpreter > --- WEAPON ----------- Slug Cannon Katana > --- INVENTORY -------- Ion Engine Aluminum Leg Aluminum Leg Structural Scanner Beam Cannon Light Assault Rifle High-powered Shotgun Grenade Launcher [Rating: 13] Favorites ----------- Power Light Ion Engine Engine Light Ion Engine Propulsion Wheel Leg Aluminum Leg Wheel Wheel Flight Unit Flight Unit Utility Small Storage Unit Device Structural Scanner Storage Small Storage Unit Processor Signal Interpreter Weapon Light Assault Rifle Energy Gun Medium Laser Energy Cannon Beam Cannon Ballistic Gun Light Assault Rifle Ballistic Cannon Slug Cannon Slashing Weapon Katana Build | -11 -10 -10 ------- Run | Yrd Mat Min Slots Evolved . | . . . Power . | . . . Propulsion . | . . . Utility . | . . . Weapon . | . . . Parts Attached 28 | 6 17 5 Power 4 | 1 2 1 Engine 4 | 1 2 1 Core . | . . . Reactor . | . . . Propulsion 12 | 2 9 1 Treads . | . . . Leg 2 | 2 . . Wheel 8 | . 7 1 Hover . | . . . Flight 2 | . 2 . Utility 3 | 1 2 . Device 1 | . 1 . Storage 1 | 1 . . Processor 1 | . 1 . Hackware . | . . . Protection . | . . . Artifact . | . . . Weapon 9 | 2 4 3 Energy Gun 1 | 1 . . Energy Cannon 1 | . 1 . Ballistic Gun 4 | 1 2 1 Ballistic Cannon 1 | . . 1 Launcher . | . . . Special Weapon . | . . . Impact Weapon . | . . . Slashing Weapon 2 | . 1 1 Piercing Weapon . | . . . Special Melee Weapon . | . . . Unidentified Prototypes . | . . . Parts Lost 5 | . 2 3 Power 2 | . 1 1 Propulsion 3 | . 1 2 Utility . | . . . Weapon . | . . . Highest Loss Streak 2 | . 1 2 To Critical Strikes . | . . . Average Slot Usage (%) 97 | . 96 98 Engine 13 | . 13 13 Leg 4 | . 6 . Wheel 22 | . 21 27 Device 6 | . 8 . Storage 14 | . 14 14 Processor 6 | . 3 14 Energy Gun 2 | . 3 . Energy Cannon 5 | . 7 . Ballistic Gun 12 | . 14 7 Ballistic Cannon 1 | . . 5 Slashing Weapon 5 | . 2 14 Naked Turns . | . . . Heaviest Build 17 | 13 14 17 Greatest Support 26 | 20 26 26 Greatest Overweight (x) 4 | 4 1 . Average Overweight (x) . | 1 . . Largest Inventory Capacity 8 | 8 8 8 Average Capacity 7 | 7 8 8 Most Carried 8 | 6 8 8 Average Carried 7 | 4 7 7 Final Capacity 8 | 8 8 8 Final Carried 8 | 4 8 8 Class Distribution -------------------- 96% | Mutant 3% | Scavenger-Mutant Dominant Class ---------------- Mutant | -10/Materials Mutant | -10/Mines Resources | -11 -10 -10 ----------- Run | Yrd Mat Min Matter Collected 524 | 234 246 44 Remotely . | . . . Salvage Created 632 | . 487 145 Parts 41 | . 37 4 Haulers Intercepted . | . . . Recyclers Shooed . | . . . Parts Field Recycled . | . . . Retrieved Matter . | . . . Parts Self-Destructed . | . . . Prevented . | . . . Kills | -11 -10 -10 ------- Run | Yrd Mat Min Combat Hostiles Destroyed 17 | . 13 4 Melee 4 | . . 4 Guns 9 | . 9 . Cannons 4 | . 4 . Classes Destroyed 8 | . 5 3 Worker 2 | . 1 1 Tunneler 1 | . 1 . Recycler 1 | . . 1 Watcher 2 | . 2 . Swarmer 6 | . 6 . Grunt 7 | . 7 . Demolisher 1 | . . 1 Assembled 3 | . . 3 Best Kill Streak 4 | . 4 3 Combat Bots Only 3 | . 3 2 Max Kills in Single Turn 2 | . 2 1 Gunslinging . | . . . Exploded . | . . . Melee 1 | . . 1 Uniques/NPCs Destroyed . | . . . Combat | -11 -10 -10 -------- Run | Yrd Mat Min Hostile Shots Fired 90 | . 78 12 Missed 12 | . 11 1 Damage Taken 1007 | . 678 329 Core 263 | . 169 94 Absorbed by Shields . | . . . Regen/Repaired (Parts) 63 | . 63 . Core Remaining (%) 100 | 100 . . Volleys Fired 59 | . 58 1 Largest 2 | . 2 1 Hottest 80 | . 80 25 Shots Fired 117 | . 116 1 Gun 87 | . 86 1 Cannon 30 | . 30 . Launcher . | . . . Special . | . . . Kinetic 61 | . 60 1 Thermal 56 | . 56 . Explosive . | . . . Electromagnetic . | . . . Robot Hit Streak 9 | . 9 . Robot Miss Streak 11 | . 11 2 Penetration Max . | . . . Secondary Targets 1 | . 1 . Max Gunslinging Chain 1 | . 1 . Shots Hit Robots 75 | . 69 6 Core Hits 33 | . 29 4 Critical Kills . | . . . Critical Parts Destroyed . | . . . Critical Strikes . | . . . Melee Attacks 9 | . . 9 Impact . | . . . Slashing 9 | . . 9 Piercing . | . . . Sneak Attacks 2 | . . 2 Combat Hostiles . | . . . Follow-up Attacks . | . . . Damage Inflicted 1173 | . 882 291 Guns 568 | . 568 . Cannons 314 | . 314 . Explosions . | . . . Melee 291 | . . 291 Ramming . | . . . Kinetic 301 | . 301 . Thermal 581 | . 581 . Explosive . | . . . Electromagnetic . | . . . Impact . | . . . Slashing 291 | . . 291 Piercing . | . . . Highest Corruption . | . . . Average Corruption . | . . . Corruption Purged . | . . . Corruption Blocked . | . . . Overload Shots . | . . . Overflow Damage 69 | . 4 65 Projectiles 4 | . 4 . Explosions . | . . . Melee 65 | . . 65 Knockbacks . | . . . Impact . | . . . Kinetic . | . . . Secondary . | . . . Self-Inflicted Damage . | . . . Shots . | . . . Rammed . | . . . Targets Rammed . | . . . Kicked . | . . . Crushed . | . . . Highest Temperature 403 | . 403 . Average Temperature 100 | . 100 . Received Heat Transfer 311 | . 291 20 Effects 3 | . 3 . Shutdowns 1 | . 1 . Energy Bleed 1 | . 1 . Damage (minor) 1 | . 1 . Siege Activations . | . . . Robots Corrupted . | . . . Combat Hostiles . | . . . Parts Fried . | . . . Impact Corruptions . | . . . Robots Melted . | . . . Combat Hostiles . | . . . Parts Melted 4 | . 4 . Heat Transferred 1443 | . 1443 . Parts Sabotaged . | . . . Parts Stolen . | . . . Parts Stripped . | . . . Power Chain Reactions . | . . . Alert | -11 -10 -10 ------- Run | Yrd Mat Min Peak Influence 242 | . 242 56 Initial 56 | . . 56 Average 91 | . 133 39 Maximum Alert Level 1 | . 1 . Low Security (%) 90 | 100 84 100 Level 1 9 | . 15 . Level 2 . | . . . Level 3 . | . . . Level 4 . | . . . Level 5 . | . . . High Security . | . . . Max Security . | . . . Squads Dispatched 4 | . 3 1 Investigation 2 | . 1 1 Extermination . | . . . Reinforcement 2 | . 2 . Assault . | . . . Garrison . | . . . Intercept . | . . . Searches Triggered . | . . . Construction Impeded . | . . . Haulers Reinforced . | . . . Active Scanning Responses . | . . . Cargo Convoy Interrupts . | . . . Stealth | -11 -10 -10 --------- Run | Yrd Mat Min Distress Signals 2 | . 2 . Communications Jammed . | . . . Distress Signals . | . . . Times Spotted 33 | . 23 10 Peak Tracking Total 6 | . 4 6 Tactical Retreats 1 | . 1 . Traps | -11 -10 -10 ------- Run | Yrd Mat Min Traps Triggered 2 | . 2 . Indirectly . | . . . Trap Hack Attempts . | . . . Triggered . | . . . Disarmed . | . . . Reprogrammed . | . . . Reused . | . . . Traps Extracted . | . . . Installed . | . . . Triggered . | . . . Machines | -11 -10 -10 ---------- Run | Yrd Mat Min Machines Disabled . | . . . Max in Single Turn . | . . . Machines Repaired . | . . . Machines Dismantled . | . . . Machines Sabotaged . | . . . Overloaded Fab Kills . | . . . Hacking | -11 -10 -10 --------- Run | Yrd Mat Min Machines Accessed 7 | . 6 1 Terminals 4 | . 4 . Fabricators . | . . . Repair Stations 1 | . 1 . Recycling Units 1 | . 1 . Scanalyzers . | . . . Garrison Access . | . . . Total Hacks 14 | . 13 1 Successful 7 | . 6 1 Failed 7 | . 7 . Catastrophic 2 | . 2 . Database Lockouts . | . . . Manual . | . . . Terminals 8 | . 8 . Fabricators . | . . . Repair Stations 2 | . 2 . Recycling Units 3 | . 3 . Scanalyzers . | . . . Garrison Access . | . . . Terminal Hacks 5 | . 4 1 Record 1 | . 1 . Open Door 1 | . . 1 Locate Traps 1 | . 1 . Recall Investigation 1 | . 1 . Zone Layout 1 | . 1 . Fabricator Hacks . | . . . Repair Station Hacks 2 | . 2 . Scan Component 1 | . 1 . Repair 1 | . 1 . Recycling Unit Hacks . | . . . Scanalyzer . | . . . Garrison Access Hacks . | . . . Unauthorized Hacks . | . . . Terminals . | . . . Fabricators . | . . . Repair Stations . | . . . Recycling Units . | . . . Scanalyzers . | . . . Garrison Access . | . . . Data Cores Recovered . | . . . Used . | . . . Hacking Detections 5 | . 5 . Full Trace Events . | . . . Feedback Events . | . . . Feedback Blocked . | . . . Robot Schematics Acquired . | . . . Robots Built . | . . . Authchips . | . . . Time . | . . . Total Robot Build Rating . | . . . Part Schematics Acquired . | . . . Parts Built . | . . . Authchips . | . . . Time . | . . . Total Part Build Rating . | . . . Parts Repaired 1 | . 1 . Time 13 | . 13 . Parts Recycled . | . . . Recycled Matter . | . . . Retrieved Matter . | . . . Retrieved Components . | . . . Parts Scanalyzed . | . . . Part Schematics Acquired . | . . . Parts Damaged . | . . . Bothacking | -11 -10 -10 ------------ Run | Yrd Mat Min Used RIF Installer . | . . . Robots Hacked . | . . . Non-combat . | . . . Combat . | . . . Robot Hacks Applied . | . . . Relay Couplers Released . | . . . Fabnet Peak Effective % . | . . . Robots Rewired . | . . . Allies Hacked . | . . . Hacks Repelled . | . . . Allies | -11 -10 -10 -------- Run | Yrd Mat Min Total Allies 2 | . . 2 Largest Group 2 | . . 2 Highest-Rated Group 50 | . . 50 Highest-Rated Ally 31 | . . 31 Total Orders . | . . . Ally Attacks 3 | . . 3 Total Damage 62 | . . 62 Kills . | . . . Allies Corrupted . | . . . Allies Melted . | . . . Intel | -11 -10 -10 ------- Run | Yrd Mat Min Robot Analysis Total . | . . . Derelict Logs Recovered . | . . . Drone Launches . | . . . Drone Recoveries . | . . . Exploration | -11 -10 -10 ------------- Run | Yrd Mat Min Turns Passed 1898 | 285 1180 433 Spaces Moved 1525 | 172 954 399 Core 59 | 59 . . Treads . | . . . Legs 240 | 113 127 . Wheels 1207 | . 808 399 Hover . | . . . Flight 19 | . 19 . Fastest Speed 50 | 50 80 90 Average Speed 96 | 155 88 90 Slowest Speed 250 | 250 190 100 Overloaded Moves . | . . . Propulsion Burnouts . | . . . Robots Hopped . | . . . Cave-ins Triggered . | . . . Exploration Rate (%) 53 | 10 96 53 Regions Visited 2 Branch Regions 1 Pre-discovered Areas . | . . . Known Exits Taken 1 | . 1 . Unknown Exits Taken 1 | 1 . . Scrap Searched . | . . . Spaces Dug . | . . . Terrain Destroyed . | . . . Melee . | . . . Projectile . | . . . AOE . | . . . Terrain Rammed . | . . . Walls Destroyed . | . . . Machines Disabled . | . . . Actions | -11 -10 -10 --------- Run | Yrd Mat Min Total 1838 | 190 1186 462 Wait 158 | 3 123 32 Move 1523 | 171 953 399 Hop . | . . . Pick Up 41 | 10 22 9 Fast Attach . | . . . Attach 20 | 6 9 5 Detach . | . . . Swap 8 | . 8 . Drop 20 | . 13 7 Fire 59 | . 58 1 Melee 9 | . . 9 Ram . | . . . Kick . | . . . Crush . | . . . Escape Stasis . | . . . Rewire . | . . . Trap . | . . . Miscellaneous . | . . . Route ------- -11/Scrapyard -10/Materials (discovered 5 exits: *Mat x3 / *Min x2) -10/Mines (discovered 1 exit: *Mat) History --------- Turn | Location | Event 28 | -11/Scrapyard | Discovered new exit (range 15) 286 | -11/Scrapyard | Entered Materials 306 | -10/Materials | Build established: Mutant 332 | -10/Materials | Discovered new exit (range 12) 404 | -10/Materials | Discovered new exit (range 16) 565 | -10/Materials | Discovered new exit (range 10) 754 | -10/Materials | Discovered new exit (range 5) 847 | -10/Materials | Core integrity fell below 50% 915 | -10/Materials | Discovered new exit (range 14) 1116 | -10/Materials | Repaired Lgt. Assault Rifle 1223 | -10/Materials | Identified exit to Materials 1362 | -10/Materials | Identified exit to Mines 1466 | -10/Materials | Entered Mines 1495 | -10/Mines | Met a Derelict shopkeep closing up shop 1568 | -10/Mines | Assembled infested the area 1573 | -10/Mines | Assisted by a Guerilla fighting off Assembled 1604 | -10/Mines | Discovered exit to Materials (range 15) 1622 | -10/Mines | Lost 3 allies 1650 | -10/Mines | Core integrity fell below 20% 1715 | -10/Mines | A weapon hastily lodged in a ceiling crevice suddenly fell to the ground 1899 | -10/Mines | Destroyed by as-33297 with Assembled Blade Last Messages --------------- K-01 Serf collects debris. U-05 Engineer lays Concrete. A Slug Cannon has been hastily shoved under some rubble with a note attached: "It's not as slow as it sounds." Dropped Hpw. Shotgun. Dropped Lgt. Cannon. Acquired Slug Cannon. Acquired Hpw. Shotgun. T-07 Excavator is excavating. as-78934 destroyed. Acquired 10 matter. as-71841 destroyed. as-06290 destroyed. K-01 Serf collects debris. U-05 Engineer lays Concrete. K-01 Serf collects debris. U-05 Engineer lays Concrete. K-01 Serf collects debris. Wheel destroyed. Map ----- +----------------------------------------------------+ | ???????????????????????????????????????????? | | ???????????????????????????????????????????? | | ???????????????????????????????????????????? | | ???????????????????????????????????????????? | | ???????????????????????????????????????????? | | ???????????????????????????????????????????? | | ???????????????????????????????????????????? | | ???????????????????????????????????????????? | | ???????????????????????????????????????????? | | ???????????????????????????????????????????? | | ???????????????????? ??????????????????????? | | ?????????????????? ?????????????????????? | | ?????????????????? " ?????????????????????? | | ?????????????????* ????????????????????? | | ?????????????????% ???????????????????? | | ????????????????%=% ??????????????????? | | ????????????????! #?????????????????? | | ???????????????? "#####????????????? | | ????????????????# ##???????????? | | ???####???????????# #???????????? | | ???# #????????????? #???????????? | | ???# ##???????????????? #???????????? | | ???## ##???????????????## # ##??????????? | | ????# ######????##########= # ##?????????? | | ????# ! ##???#%a=%!%!!%!= #?????????? | | ????# *=%=%= ##??#@########=%# ##?????????? | | ????##%=%%%%!=!####=#???# # = #?????????? | | ?????#=*<%=%*%= #???## % #?????????? | | ?????# %%=!!!%!#####????# #??????????? | | ?????## %%* %!=##?####???# ! #??????????? | | ??????## =*=##?## ##??## ##??????????? | | ???????## *=|*##?# ####% ###???????????? | | ???????## !%|%=#?# ###?????????????? | | ???????# =!*%!#?## ##?????????##????? | | ???????# !%=*##### #?????????## ???? | | ???????# !!= ## #????????## ??? | | ???????### ### ##????????# ?? | | ?????????## ## ##?????????? ? | | ??????????# ## ##????????????? # | | ?????###?## #%= #????????????????? | | ????## ## % != ##?????????????????? | | ????# =% !*%|* #???????????????????? | | ???## ![##############???????? | | ??## % %= #???????? | | ??# [! #???????? | | ??# ########### #??????## | | ??## ##?????????# #?????## | | ???## ### ##???????#### #?????# | | ????# #??## ##???????## #?????# | | ????## #??## ##????????# ##????# | +----------------------------------------------------+ Best States ------------- Heat Dissipation 25 Energy Generation 10 Energy Capacity 250 Matter Stores 300 Matter Capacity 300 Sight Range 16 Terrain Scan Density 10 Evasion (%) 55 Item Schematics ----------------- None Robot Schematics ------------------ None Fabricated ------------ Nothing Alien Tech Used ----------------- None Achievements -------------- None Challenges ------------ None Game ------ Seed SegregatorGuidanceBoomstick Manual? 0 Play Time 00:28:33 Cumulative 5.8 hours Start 2024.04.11 @ 21:56:16 End 2024.04.11 @ 22:25:47 Sessions 1 Manual Loads 0 Difficulty Rogue Special Mode None Game No. 4 Rogue 4 Adventurer 0 Explorer 0 Win Type - Total 0 Types 0/0/0/0/0/0/0/0/0 Lore% 4 Gallery% 10 Achievement% 12 Wizard Run 0 Options --------- Layout 1 ASCII 0 Keyboard 0 Movement Mouse Keybinds 0 Fullscreen 1 Font 24/Smallcaps Map View 50x35 Zoom Use 0% Tactical HUD 0 Map Filters NONE Filters NONE Steam 1 RUN: bea16e5d-da2e-4c13-a897-85032030acdb